bitfinex/quotes_ETHUSD_20241212
["timestamp","ask_amount","ask_price","bid_price","bid_amount"]
[1734037804578,2.57818,3878.7,3877.8,0.31373]
[1734037805109,0.02537225,3878.6,3877.8,0.31373]
[1734037805812,0.02537225,3878.6,3877.9,1.3663]
[1734037806018,2.57804,3879.0,3877.9,1.3663]
[1734037806516,0.02494524,3878.9,3877.9,1.3663]
[1734037806671,0.02494524,3878.9,3878.0,0.400093]
[1734037806870,0.0226423,3878.8,3877.9,0.8163]
[1734037807069,2.57857,3878.2,3877.9,0.8163]
[1734037807286,2.49013528,3878.4,3876.4,2.32169]
[1734037807287,2.57864,3878.0,3876.8,2.32144]
[1734037807489,0.02493933,3878.1,3877.0,0.7655]
[1734037807784,0.02493933,3878.1,3877.1,0.7655]
[1734037808149,0.02493933,3878.1,3877.2,0.308687]
[1734037808323,0.02493933,3878.1,3877.3,0.7523]
[1734037808619,5.06851528,3878.4,3877.3,0.7162818]
[1734037808620,2.57853,3878.2,3877.3,0.7162818]
[1734037808782,0.02493859,3878.0,3877.3,0.7162818]
[1734037809414,0.02493785,3877.9,3877.3,0.7162818]
[1734037809573,2.57853,3878.2,3877.3,1.35090668]
[1734037809774,0.02466841,3877.8,3877.3,1.35090668]
[1734037810124,2.57853,3878.2,3877.3,1.35090668]
[1734037810711,0.02467063,3878.1,3877.3,1.35090668]
[1734037812062,2.60325063,3878.1,3877.3,1.35090668]
[1734037812229,0.02467063,3878.1,3877.3,0.7162818]
[1734037812518,2.49013528,3878.4,3877.3,0.7162818]
[1734037812519,2.57877,3877.9,3877.3,0.7162818]
[1734037812873,2.57915,3877.3,3876.3,0.7974]
[1734037813070,2.99675,3877.3,3876.3,0.7974]
[1734037813287,2.57924,3877.1,3876.3,0.7974]
[1734037813575,2.57924,3877.1,3875.4,0.308534]
[1734037813576,2.57959,3876.6,3875.5,0.7974]
[1734037814010,0.02465881,3876.5,3875.5,0.7974]
[1734037814491,0.02465881,3876.5,3875.5,3.11966]
[1734037814806,0.02465881,3876.5,3875.6,0.36407505]
[1734037815007,2.60431881,3876.5,3875.6,0.36407505]
[1734037815216,0.02465881,3876.5,3875.7,0.55]
[1734037815370,2.57965,3876.5,3875.7,0.7981]
[1734037815571,0.02465807,3876.4,3875.8,0.55]
[1734037815778,2.90773528,3877.6,3876.2,2.32184]
[1734037815972,2.57906,3877.4,3876.3,0.79]
[1734037816282,2.57906,3877.4,3876.3,1.101184]
[1734037817068,2.57912,3877.3,3876.3,1.101184]
[1734037817271,2.57912,3877.3,3876.3,0.79]
[1734037818218,2.57919,3877.2,3876.3,0.79]
[1734037818590,2.57924,3877.1,3876.3,0.79]
[1734037818992,2.90773528,3877.6,3876.3,3.1118]
[1734037819409,0.02282462,3877.5,3876.3,0.79]
[1734037819629,2.57918,3877.2,3876.3,0.79]
[1734037819793,2.60187388,3877.4,3876.3,0.79]
[1734037819999,0.43630117,3878.3,3877.0,2.32138]
[1734037820000,0.02281022,3877.1,3877.0,2.32138]
[1734037820203,0.43630117,3878.3,3877.2,2.32122]
[1734037820537,0.43630117,3878.3,3877.0,0.55]
[1734037820538,3.01475117,3878.3,3877.3,0.7511]
[1734037820682,0.43630117,3878.3,3877.3,0.7511]
[1734037820885,0.43630117,3878.3,3877.3,3.0723]
[1734037821194,2.57865,3878.0,3877.3,0.7511]
[1734037822124,0.43630117,3878.3,3877.3,0.7511]
[1734037822294,2.57867,3878.0,3877.3,0.7511]
[1734037822695,2.57877,3877.9,3877.3,0.7511]
[1734037823036,2.57861,3878.1,3877.3,0.7511]
[1734037823184,3.12911464,3878.1,3877.3,0.7511]
[1734037824096,0.55050464,3878.1,3877.3,0.7511]
[1734037824500,2.57858,3878.1,3877.3,0.7511]
[1734037824931,0.43630117,3878.3,3877.3,0.7511]
[1734037825147,2.57881,3877.8,3877.3,0.7511]
[1734037826040,2.57864,3878.1,3877.3,0.7511]
[1734037826259,2.57919,3877.2,3877.0,0.7501]
[1734037826546,5.50902758,3878.0,3877.0,0.7501]
[1734037826710,2.57899,3877.5,3877.0,0.7501]
[1734037826915,2.57911,3877.3,3877.0,0.7501]
[1734037827372,2.6014323,3877.8,3877.0,0.7501]
[1734037827373,0.0226423,3877.8,3877.0,0.7501]
[1734037827661,0.55090276,3877.9,3877.0,0.7501]
[1734037827959,2.57905,3877.4,3877.0,0.7501]
[1734037828264,2.836955,3877.4,3877.0,0.7501]
[1734037828473,2.57918,3877.2,3876.2,0.55]
[1734037829657,2.57918,3877.2,3876.3,0.8147]
[1734037830998,2.57925,3877.1,3876.3,0.8147]
[1734037831583,2.57913,3877.3,3876.3,0.8147]
[1734037831787,0.257905,3877.4,3876.4,2.32172]
[1734037831936,2.57885,3877.7,3876.4,0.8147]
[1734037832285,0.55090276,3877.9,3876.7,0.7571]
[1734037832438,2.57893,3877.6,3876.7,0.7571]
[1734037834236,0.02344245,3877.5,3876.7,0.7571]
[1734037834903,2.14226835,3878.7,3876.5,0.55]
[1734037834904,0.4176,3878.5,3877.4,0.8024]
[1734037835072,0.16067013,3878.5,3877.4,0.8024]
[1734037835392,0.16067013,3878.5,3877.6,0.8154]
[1734037836391,2.57839,3878.4,3877.6,0.8154]
[1734037837086,2.57847,3878.3,3877.6,0.8154]
[1734037837289,2.90773528,3878.8,3877.6,0.8154]
[1734037837441,2.57854,3878.2,3877.6,0.8154]
[1734037837840,2.57871,3878.0,3877.6,0.8154]
[1734037838790,2.57879,3877.8,3877.6,0.8154]
[1734037838998,0.257871,3878.0,3877.2,0.7882]
[1734037839144,2.57873,3877.9,3877.2,0.7882]
[1734037839862,0.0226423,3877.9,3877.2,0.7882]
[1734037840191,2.57919,3877.2,3876.1,0.7882]
[1734037840483,2.57919,3877.2,3876.0,2.84478469]
[1734037840484,2.57906,3877.4,3876.3,2.32178]
[1734037840786,2.57906,3877.4,3876.4,0.8133]
[1734037841286,2.57906,3877.4,3876.4,3.8133]
[1734037841961,2.57595578,3877.4,3876.5,0.64983785]
[1734037842289,2.57894,3877.6,3876.6,0.8276]
[1734037842796,0.4402423,3877.9,3876.6,0.8276]
[1734037842945,2.57902,3877.5,3876.6,0.8276]
[1734037843138,2.57902,3877.5,3876.6,1.44253]
[1734037843540,2.5791,3877.4,3876.6,1.44253]
[1734037844665,2.57915,3877.3,3876.6,1.44253]
[1734037846182,0.0226423,3877.7,3876.6,0.8276]
[1734037846509,2.57946,3876.8,3876.6,0.8276]
[1734037847575,2.51277758,3877.2,3876.2,0.7566]
[1734037847758,2.57971,3876.4,3876.2,0.7566]
[1734037848371,0.0226423,3876.7,3875.5,0.7566]
[1734037848372,2.57985,3876.2,3875.5,0.7566]
[1734037849004,2.57979,3876.3,3875.5,0.7566]
[1734037849169,2.57979,3876.3,3875.6,0.607899]
[1734037849513,0.02332986,3876.2,3875.5,0.7566]
[1734037849719,0.02332986,3876.2,3876.0,0.8229]
[1734037849931,0.02332986,3876.2,3876.1,1.3729]
[1734037850139,2.57937,3877.0,3876.1,1.3729]
[1734037850630,1.07113417,3877.4,3876.1,1.3729]
[1734037850784,2.57925,3877.1,3876.2,0.369486]
[1734037851690,1.07113417,3877.4,3876.4,2.32171]
[1734037851883,0.89141491,3877.4,3876.5,0.828]
[1734037852084,2.57899,3877.5,3876.6,0.314971]
[1734037852314,3.65009417,3877.6,3876.7,0.7668]
[1734037852529,2.22851198,3877.5,3876.7,0.7668]
[1734037853409,1.07113417,3877.7,3876.7,3.08832]
[1734037853725,1.50747561,3877.9,3876.9,0.7668]
[1734037854020,0.43634144,3877.9,3876.9,0.7668]
[1734037854187,1.32789809,3877.9,3876.9,0.7668]
[1734037854381,0.43634144,3877.9,3877.0,0.8283]
[1734037854788,3.01508144,3877.9,3877.0,0.8283]
[1734037854985,1.14164012,3877.9,3877.0,0.8283]
[1734037855185,2.03328923,3877.9,3877.0,3.14968]
[1734037855381,0.43634144,3877.9,3877.0,3.14968]
[1734037855610,1.32804285,3877.9,3877.0,0.8283]
[1734037855811,2.66559309,3877.9,3877.0,0.8283]
[1734037856023,0.89170028,3877.8,3877.0,0.8283]
[1734037856191,0.43634144,3877.9,3877.0,3.14968]
[1734037856192,1.77391061,3877.9,3877.0,3.14968]
[1734037856519,0.43634144,3877.9,3877.1,0.314968]
[1734037857857,2.66580329,3877.9,3877.1,0.314968]
[1734037858188,0.89179701,3877.8,3877.1,0.314968]
[1734037858391,0.89179701,3877.8,3877.0,0.8283]
[1734037858545,0.91443931,3877.8,3877.0,0.8283]
[1734037858747,0.0226423,3877.8,3877.0,0.8283]
[1734037859187,4.08619561,3877.9,3877.0,0.8283]
[1734037859392,0.89186443,3877.8,3877.0,0.8283]
[1734037859748,0.43634144,3877.9,3877.3,0.7799]
[1734037860095,2.49013528,3878.4,3877.3,0.7799]
[1734037860295,0.04559291,3878.3,3877.3,0.7799]
[1734037860484,2.57864,3878.1,3877.3,0.7799]
[1734037860682,0.91544564,3878.0,3877.3,0.7799]
[1734037860994,0.02352624,3878.0,3877.3,0.7799]
[1734037862155,0.99590025,3878.0,3877.3,0.7799]
[1734037862355,1.9706327,3877.9,3877.3,0.7799]
[1734037862556,2.57885,3877.7,3877.3,0.7799]
[1734037863052,0.02352329,3877.6,3877.3,0.7799]
[1734037863698,3.65718343,3878.1,3877.3,0.7799]
[1734037863867,2.25367362,3878.0,3877.3,0.7799]
[1734037864190,0.89203879,3877.9,3877.3,0.7799]
[1734037864395,0.02361776,3878.0,3877.3,0.7799]
[1734037864571,0.02361628,3877.8,3877.3,0.7799]
[1734037864754,3.65718343,3878.1,3877.3,0.7799]
[1734037864755,0.02361702,3877.9,3877.3,0.7799]
[1734037864955,3.65718343,3878.1,3877.3,0.7799]
[1734037864956,0.02361554,3877.7,3877.3,0.7799]
[1734037865171,0.02361628,3877.8,3877.3,0.7799]
[1734037865367,0.0236148,3877.6,3877.3,0.7799]
[1734037865660,0.02361406,3877.5,3877.3,0.7799]
[1734037865856,1.33806804,3878.0,3877.3,0.7799]
[1734037866205,0.02361702,3877.9,3877.3,0.7799]
[1734037866560,1.33809655,3878.0,3877.3,0.7799]
[1734037866792,0.02361628,3877.8,3877.3,0.7799]
[1734037866999,0.02361702,3877.9,3877.3,0.7799]
[1734037867155,1.33809655,3878.0,3877.3,0.7799]
[1734037867156,0.02361554,3877.7,3877.3,0.7799]
[1734037867356,0.02361628,3877.8,3877.3,0.7799]
[1734037867561,0.0236148,3877.6,3877.3,0.7799]
[1734037867800,0.02361554,3877.7,3877.3,0.7799]
[1734037868095,1.33811925,3878.0,3877.3,0.7799]
[1734037868297,2.23020204,3878.0,3877.3,0.7799]
[1734037868472,0.02361702,3877.9,3877.3,0.7799]
[1734037869672,0.02361702,3877.9,3877.4,3.04013528]
[1734037869902,1.07860343,3878.9,3877.8,0.55]
[1734037870219,1.07860343,3878.9,3877.9,0.7711]
[1734037870220,1.99352688,3878.8,3877.9,0.7711]
[1734037870383,1.3868395,3878.7,3877.9,0.7711]
[1734037870923,3.8031278,3878.7,3877.9,0.7711]
[1734037871080,1.61790515,3878.9,3877.9,0.7711]
[1734037871081,1.07860343,3878.9,3878.0,0.0257835]
[1734037871276,0.89173377,3878.9,3878.3,0.7857]
[1734037871476,1.07860343,3879.2,3878.3,0.7857]
[1734037871915,3.30731703,3879.2,3878.4,0.55]
[1734037872132,1.07860343,3879.3,3878.6,0.7857]
[1734037872415,1.76354223,3879.5,3878.8,0.7857]
[1734037873028,1.76354223,3879.5,3878.8,3.106]
[1734037873172,1.76354223,3879.5,3878.8,0.7857]
[1734037873378,1.07860343,3880.1,3879.0,0.8025]
[1734037873686,1.61790515,3880.3,3878.6,3.55]
[1734037873687,3.65574343,3880.3,3879.2,2.32006]
[1734037873916,1.07860343,3880.7,3879.7,0.7718]
[1734037874217,2.57677,3880.9,3879.7,2.31971]
[1734037874420,2.03550515,3881.1,3879.7,2.31971]
[1734037874421,4.07280343,3881.1,3879.9,0.7718]
[1734037874571,2.9942,3881.1,3879.9,0.797571]
[1734037874772,2.57665,3881.0,3879.9,0.797571]
[1734037874971,2.57665,3881.0,3879.9,0.7718]
[1734037875180,0.023255,3880.5,3879.9,0.7718]
[1734037877189,2.57724,3880.2,3879.5,0.8226]
[1734037877397,2.57725,3880.1,3879.5,0.8226]
[1734037877605,2.60181142,3880.1,3879.5,0.8226]
[1734037877914,0.02456142,3880.1,3879.5,0.8226]
[1734037878124,2.57712,3880.3,3879.5,0.8226]
[1734037878480,0.02456216,3880.2,3879.5,0.8226]
[1734037879006,2.57751,3879.8,3879.0,0.7827]
[1734037879335,0.02438703,3879.7,3879.0,0.7827]
[1734037881183,0.67776822,3880.1,3879.0,0.7827]
[1734037881184,2.57739,3879.9,3879.0,0.7827]
[1734037881376,0.02438629,3879.6,3879.0,0.7827]
[1734037881579,2.57739,3879.9,3879.0,0.7827]
[1734037881780,0.02438555,3879.5,3879.0,0.7827]
[1734037882105,0.02438481,3879.4,3879.0,0.7827]
[1734037882318,2.57779,3879.3,3879.0,0.7827]
[1734037882507,0.02438334,3879.2,3879.0,0.7827]
[1734037882706,2.57779,3879.3,3879.0,0.7827]
[1734037882907,0.02438334,3879.2,3879.0,0.7827]
[1734037883086,2.57779,3879.3,3879.0,0.7827]
[1734037883283,0.02438334,3879.2,3879.0,0.7827]
[1734037883480,2.57779,3879.3,3879.0,0.7827]
[1734037883695,0.02438334,3879.2,3879.0,0.7827]
[1734037883900,0.4176,3880.5,3879.1,0.55]
[1734037884104,2.57714,3880.3,3879.3,0.7828]
[1734037884312,0.02417923,3880.2,3879.3,0.7828]
[1734037884641,1.07860343,3881.1,3879.3,0.7828]
[1734037884642,1.07860343,3882.0,3881.3,0.7828]
[1734037884935,2.18114223,3882.6,3881.4,0.55]
[1734037885135,0.21811422,3882.5,3881.5,0.02575921]
[1734037885344,0.21811422,3882.5,3881.4,0.55]
[1734037885497,1.76354223,3882.6,3881.7,0.55]
[1734037885696,4.33917223,3882.6,3881.8,0.7813]
[1734037885897,1.76354223,3882.6,3881.8,0.7813]
[1734037886108,2.57579,3882.3,3881.8,0.7813]
[1734037886308,0.0226423,3882.2,3881.4,0.7813]
[1734037886657,2.57599,3882.0,3881.4,0.7813]
[1734037886803,2.57614,3881.8,3880.7,0.813]
[1734037886999,0.0226423,3881.7,3880.7,0.813]
[1734037887203,2.57625,3881.6,3880.7,0.813]
[1734037887439,3.43254548,3882.1,3880.7,0.813]
[1734037887440,2.57665,3881.0,3880.7,0.813]
[1734037887639,2.57665,3881.0,3879.8,0.8209]
[1734037887640,2.834315,3881.0,3879.8,0.8209]
[1734037888447,0.257665,3881.0,3880.1,2.31949]
[1734037888747,0.257665,3881.0,3880.0,0.55]
[1734037889049,2.57652,3881.2,3880.0,0.55]
[1734037889869,2.5766,3881.1,3880.0,0.55]
[1734037890819,2.57694,3880.6,3879.8,0.8209]
[1734037891916,0.0226423,3880.5,3879.8,0.8209]
[1734037892107,2.5771,3880.4,3879.8,0.8209]
[1734037892822,0.25771,3880.4,3879.8,0.8209]
[1734037893134,0.25771,3880.4,3879.0,2.32014]
[1734037893135,2.57737,3880.0,3879.0,0.7857]
[1734037893333,2.57742,3879.9,3879.0,0.7857]
[1734037895153,0.25771,3880.4,3879.2,2.32005]
[1734037895354,0.25771,3880.4,3879.3,3.235565]
[1734037895956,2.57678,3880.8,3879.3,0.915575]
[1734037896560,2.57716,3880.3,3879.3,0.915575]
[1734037896723,0.4176,3880.9,3879.5,0.55]
[1734037896926,2.57699,3880.5,3879.5,0.55]
[1734037897338,2.57708,3880.4,3879.5,0.55]
[1734037897538,2.57708,3880.4,3879.5,1.2510235]
[1734037898362,2.57708,3880.4,3879.5,0.55]
[1734037899344,2.57691,3880.7,3879.6,0.81087172]
[1734037899549,2.57679,3880.8,3879.7,2.31975]
[1734037899865,2.57679,3880.8,3879.6,0.81087172]
[1734037899866,0.4176,3881.3,3879.6,0.7851]
[1734037900015,2.57698,3880.5,3879.6,0.7851]
[1734037901122,2.57699,3880.5,3879.6,0.7851]
[1734037901556,0.0226423,3881.1,3879.6,0.7851]
[1734037901757,2.57705,3880.5,3879.6,0.7851]
[1734037902516,2.57685,3880.7,3879.6,0.7851]
[1734037902712,2.57747,3879.8,3879.6,0.7851]
[1734037903775,2.57732,3880.0,3879.6,0.7851]
[1734037905320,2.57739,3879.9,3879.6,0.7851]
[1734037907318,0.25994923,3880.6,3879.6,0.7851]
[1734037907613,1.95966515,3881.2,3879.8,2.31969]
[1734037907614,2.57678,3880.8,3879.8,2.31969]
[1734037907910,2.57678,3880.8,3880.0,0.7739]
[1734037908472,2.57687,3880.7,3880.0,0.7739]
[1734037908872,0.0226423,3881.1,3880.0,0.7739]
[1734037909467,2.57691,3880.7,3880.0,0.7739]
[1734037909695,2.57692,3880.6,3880.0,0.7739]
[1734037910121,2.57665,3881.0,3880.0,0.7739]
[1734037910290,2.57699,3880.5,3880.0,0.7739]
[1734037910681,2.57725,3880.1,3880.0,0.7739]
[1734037910986,0.33586523,3880.9,3879.1,0.55]
[1734037910987,2.57741,3879.9,3879.1,0.55]
[1734037911515,2.57741,3879.9,3879.0,0.786]
[1734037911711,2.57745,3879.8,3879.1,0.61063]
[1734037911884,2.57692,3880.6,3879.0,0.786]
[1734037911885,2.57759,3879.6,3879.0,0.786]
[1734037912086,2.5775,3879.8,3879.0,0.786]
[1734037912442,2.57749,3879.8,3879.0,0.786]
[1734037912638,2.57752,3879.7,3879.0,0.786]
[1734037913326,2.57733,3880.0,3879.0,0.786]
[1734037913479,2.5776,3879.6,3879.0,0.786]
[1734037913799,2.57765,3879.5,3879.0,0.786]
[1734037915921,2.57748,3879.8,3879.0,0.786]
[1734037916101,1.07860343,3880.2,3879.0,0.786]
[1734037916288,1.07860343,3880.2,3879.3,0.55]
[1734037916289,2.57719,3880.2,3879.3,0.55]
[1734037916488,1.07860343,3880.5,3879.4,0.363132]
[1734037916707,3.91212367,3880.6,3879.5,0.55]
[1734037917015,1.61790515,3880.8,3879.5,0.55]
[1734037917016,1.07860343,3880.8,3879.7,0.7612]
[1734037917317,2.57698,3880.6,3879.7,0.7612]
[1734037917521,2.57698,3880.6,3879.8,0.55]
[1734037917722,2.57686,3880.7,3879.9,0.7612]
[1734037918221,2.57686,3880.7,3879.9,1.124301]
[1734037918422,1.07860343,3880.9,3879.9,1.124301]
[1734037918728,2.57672,3880.9,3879.9,1.124301]
[1734037918925,2.57681,3880.8,3879.9,1.124301]
[1734037919424,2.57687,3880.7,3879.9,1.124301]
[1734037919796,0.0226423,3880.9,3879.9,1.124301]
[1734037919996,0.0226423,3880.9,3879.9,0.7612]
[1734037919997,0.15372321,3880.8,3879.9,0.7612]
[1734037920198,2.57693,3880.6,3879.9,0.7612]
[1734037920592,1.10124573,3880.9,3879.9,0.7612]
[1734037920593,2.577,3880.5,3879.9,0.7612]
[1734037921013,2.57687,3880.7,3879.9,0.7612]
[1734037921527,0.0226423,3880.8,3879.9,0.7612]
[1734037921825,2.57692,3880.6,3879.9,0.89232]
[1734037923492,2.5768,3880.8,3879.9,0.89232]
[1734037925514,1.51458977,3881.1,3880.0,0.02577076]
[1734037925729,0.43598634,3881.1,3880.3,0.7749]
[1734037925952,0.43598634,3881.1,3880.3,0.90996708]
[1734037928131,2.57653,3881.2,3880.3,0.90996708]
[1734037928455,0.89052019,3881.1,3880.3,3.22936708]
[1734037928631,2.41439888,3881.3,3880.3,3.22936708]
[1734037928954,0.89052731,3881.2,3880.3,0.90996708]
[1734037929450,2.22652637,3881.2,3880.3,0.90996708]
[1734037929968,2.57665,3881.0,3880.3,0.7749]
[1734037930128,2.57678,3880.8,3880.3,0.7749]
[1734037932118,2.57668,3881.0,3880.3,0.7749]
[1734037932587,0.89148945,3880.9,3880.3,0.7749]
[1734037933390,2.41581839,3881.1,3880.3,1.084339]
[1734037933594,0.89157777,3881.0,3880.3,1.084339]
[1734037934569,1.07860343,3881.3,3880.5,0.8045]
[1734037934769,0.89148206,3881.2,3880.5,0.8045]
[1734037934989,2.22870515,3881.2,3880.5,0.8045]
[1734037935561,3.65507343,3881.3,3880.5,0.8045]
[1734037935791,0.89144183,3881.2,3880.7,3.10656]
[1734037935991,0.89144183,3881.2,3880.5,0.3433379]
[1734037935992,1.07860343,3881.5,3880.8,2.3191]
[1734037936194,4.73326687,3881.9,3880.9,0.7746]
[1734037936195,1.07860343,3881.8,3880.9,0.7746]
[1734037936363,0.89137748,3881.7,3881.0,2.34470255]
[1734037936565,1.07860343,3881.9,3881.1,0.7746]
[1734037936893,0.89111837,3881.8,3881.2,0.02576351]
[1734037937105,1.07860343,3882.1,3881.1,3.09351]
[1734037937274,1.07860343,3882.1,3881.0,0.23447026]
[1734037937275,1.07860343,3882.1,3881.3,0.7533]
[1734037937459,3.0,3882.2,3881.3,0.7533]
[1734037937660,0.8906402,3882.1,3881.3,0.7533]
[1734037937856,2.226628,3882.1,3881.3,0.7533]
[1734037938195,1.96924363,3882.0,3881.3,0.7533]
[1734037938695,0.8906402,3881.9,3881.3,0.7533]
[1734037938894,3.46420331,3882.1,3881.3,0.7533]
[1734037939203,0.91311729,3882.0,3881.3,0.7533]
[1734037939403,2.38662339,3881.9,3880.3,0.7533]
[1734037939559,2.88147045,3881.8,3880.3,3.07265]
[1734037939756,2.88147045,3881.8,3880.3,0.7533]
[1734037939757,2.2260499,3881.7,3880.3,0.7533]
[1734037940088,0.88980476,3881.8,3880.8,2.3191]
[1734037940268,4.35635514,3881.8,3880.9,0.7843]
[1734037940629,1.07860343,3882.0,3880.9,0.7843]
[1734037940772,1.04989366,3882.1,3881.0,0.8138]
[1734037940773,2.57609,3881.9,3881.0,0.8138]
[1734037941695,1.04989366,3882.1,3881.0,0.8138]
[1734037941907,2.57618,3881.8,3881.0,0.8138]
[1734037942423,2.57622,3881.7,3881.0,0.8138]
[1734037942572,2.57629,3881.6,3881.0,0.8138]
[1734037943420,2.57613,3881.8,3881.0,0.8138]
[1734037944827,3.19633037,3881.8,3881.0,0.8138]
[1734037945136,2.57627,3881.6,3881.0,0.8138]
[1734037946884,2.57632,3881.5,3881.0,0.8138]
[1734037947485,2.57658,3881.1,3881.0,0.8138]
[1734037947827,2.57691,3880.7,3880.1,0.7704]
[1734037948381,2.57692,3880.6,3880.1,0.7704]
[1734037948585,0.0226423,3881.3,3880.1,0.7704]
[1734037948816,2.57685,3880.7,3880.1,0.7704]
[1734037950820,2.5995723,3880.6,3880.1,0.7704]
[1734037951789,0.0226423,3880.6,3880.1,0.7704]
[1734037951990,2.57712,3880.3,3879.4,0.8311]
[1734037952200,5.06213318,3880.8,3879.4,0.8311]
[1734037952201,2.57732,3880.0,3879.4,0.8311]
[1734037952843,0.257732,3880.0,3879.4,0.8311]
[1734037952994,2.5775,3879.8,3879.4,0.8311]
[1734037953592,2.57736,3880.0,3879.4,0.8311]
[1734037953793,0.4402423,3880.2,3879.4,0.8311]
[1734037954325,2.57744,3879.9,3879.4,0.8311]
[1734037954889,0.4402423,3880.2,3879.4,0.8311]
[1734037955120,2.57749,3879.8,3879.4,0.8311]
[1734037955318,0.70882137,3880.1,3879.4,0.8311]
[1734037955719,2.57732,3880.0,3879.4,0.8311]
[1734037956124,4.07860343,3880.3,3879.4,0.8311]
[1734037956308,2.57725,3880.2,3879.4,0.8311]
[1734037957540,2.57725,3880.1,3879.4,0.8311]
[1734037958445,2.57712,3880.3,3879.4,0.8311]
[1734037958598,2.57721,3880.2,3879.4,1.146221]
[1734037959614,2.57707,3880.4,3879.4,3.466151]
[1734037960014,2.57707,3880.4,3879.5,0.8017]
[1734037960640,2.5995323,3880.7,3879.5,0.8017]
[1734037960840,2.57699,3880.5,3879.5,0.8017]
[1734037961040,2.57722,3880.2,3879.5,0.8017]
[1734037963047,1.07860343,3880.6,3879.5,0.8017]
[1734037963247,0.89023092,3880.5,3879.7,0.8017]
[1734037963565,2.57692,3880.6,3879.7,0.8017]
[1734037964058,1.07860343,3881.0,3880.1,0.8203]
[1734037964261,2.57668,3881.0,3880.1,0.8203]
[1734037967923,2.24819735,3880.9,3880.1,0.8203]
[1734037968122,2.57686,3880.7,3880.1,0.8203]
[1734037968933,1.07860343,3881.1,3880.1,0.8203]
[1734037969155,0.77583718,3881.0,3880.1,0.8203]
[1734037969357,2.41389965,3881.1,3880.2,2.31944]
[1734037969655,2.57652,3881.2,3880.3,0.8203]
[1734037970540,0.0226423,3881.2,3880.3,0.8203]
[1734037970740,0.89016625,3881.1,3880.3,0.8203]
[1734037970940,2.57671,3881.0,3880.3,0.8203]
[1734037971431,3.0,3881.2,3880.3,0.8203]
[1734037971432,2.57652,3881.2,3880.3,0.8203]
[1734037971633,2.57659,3881.1,3880.3,0.8203]
[1734037972164,1.1705194,3881.2,3880.3,0.8203]
[1734037972333,3.0,3881.2,3880.3,0.8203]
[1734037972556,4.51455948,3881.4,3880.3,0.8203]
[1734037972734,0.43595605,3881.4,3880.8,2.3191]
[1734037972935,0.43595605,3881.4,3880.6,0.7584]
[1734037972936,0.43595605,3881.4,3880.9,0.7584]
[1734037973177,0.43595605,3881.4,3881.1,0.7584]
[1734037973383,0.43595605,3881.4,3881.2,0.7584]
[1734037973528,0.43595605,3881.4,3881.3,0.7584]
[1734037974632,2.5985923,3882.1,3881.3,0.7584]
[1734037974835,3.28250223,3882.1,3881.3,0.7584]
[1734037975265,2.57607,3881.9,3881.3,0.7584]
[1734037976275,3.28248223,3882.1,3881.3,0.7584]
[1734037976469,2.57627,3881.6,3881.3,0.7584]
[1734037976837,3.56395661,3881.9,3881.0,0.7545]
[1734037977168,2.57638,3881.5,3881.0,0.7545]
[1734037977472,2.57626,3881.6,3881.0,0.7545]
[1734037977640,1.71146906,3881.8,3881.0,0.7545]
[1734037977641,0.63286563,3881.8,3881.0,0.7545]
[1734037977841,2.85701015,3881.8,3881.0,0.7545]
[1734037978165,0.63286563,3881.8,3881.0,0.7545]
[1734037978346,2.57631,3881.6,3881.0,0.7545]
[1734037978549,0.67728422,3881.7,3881.0,0.7545]
[1734037978751,2.57634,3881.5,3881.0,0.7545]
[1734037978972,2.57641,3881.4,3881.0,0.7545]
[1734037979274,2.57648,3881.3,3881.0,0.7545]
[1734037980247,2.57658,3881.1,3881.0,0.7545]
[1734037980571,2.57658,3881.1,3879.9,0.51648449]
[1734037980572,3.65485343,3881.6,3880.3,0.7586]
[1734037980771,2.57659,3881.1,3880.3,0.7586]
[1734037981175,2.57646,3881.3,3880.3,0.7586]
[1734037981402,2.5766,3881.1,3880.3,0.7586]
[1734037981678,0.49650033,3881.5,3880.3,0.7586]
[1734037981679,2.57647,3881.3,3880.3,0.7586]
[1734037981880,0.49650033,3881.5,3880.2,2.86943]
[1734037981881,1.07860343,3881.7,3880.5,0.8143]
[1734037982207,2.5762,3881.7,3880.7,0.8143]
[1734037982992,2.57628,3881.6,3880.7,0.8143]
[1734037983196,3.65464343,3882.0,3880.7,0.8143]
[1734037983197,2.57634,3881.5,3880.7,0.8143]
[1734037983362,3.65467343,3881.9,3880.8,0.0257661]
[1734037983684,1.61790515,3882.1,3881.0,0.8143]
[1734037983685,2.57594,3882.1,3881.0,0.8143]
[1734037983996,2.57594,3882.1,3881.2,0.8143]
[1734037983997,0.0226423,3882.1,3881.2,0.8143]
[1734037984197,2.57615,3881.8,3881.2,0.8143]
[1734037984695,2.5762,3881.7,3881.2,0.8143]
[1734037985449,0.0226423,3882.1,3881.2,0.8143]
[1734037985705,2.57586,3882.2,3881.2,0.8143]
[1734037985846,2.57586,3882.2,3881.4,0.7597]
[1734037986050,0.4358385,3882.4,3881.4,0.7597]
[1734037986293,2.57602,3882.0,3881.4,0.7597]
[1734037986497,0.88953291,3882.3,3881.4,0.7597]
[1734037986498,2.57579,3882.3,3881.4,0.7597]
[1734037986703,2.57599,3882.1,3881.4,0.7597]
[1734037988058,1.40183356,3882.3,3881.4,0.7597]
[1734037988254,4.70418725,3882.3,3881.4,0.7597]
[1734037988457,0.8894755,3882.2,3881.4,0.7597]
[1734037988955,0.0226423,3882.3,3881.4,0.7597]
[1734037989156,2.57592,3882.1,3881.4,0.7597]
[1734037989705,2.57612,3881.8,3881.4,0.7597]
[1734037989914,2.57621,3881.7,3881.4,0.7597]
[1734037990798,2.57607,3881.9,3881.4,0.7597]
[1734037991021,2.5759,3882.2,3881.4,0.7597]
[1734037991373,0.4358385,3882.4,3881.4,0.7597]